bitfinex-derivatives/quotes_BTCF0:USTF0_20250211
["timestamp","ask_amount","ask_price","bid_price","bid_amount"]
[1739262905777,0.08347651,98329.0,98319.0,0.3608]
[1739262905971,0.2033764,98326.0,98319.0,0.3608]
[1739262906171,0.067,98325.0,98319.0,0.3608]
[1739262906777,0.067,98325.0,98319.0,0.3638]
[1739262907465,0.069,98325.0,98319.0,0.3638]
[1739262909777,0.07469419,98324.0,98319.0,0.3638]
[1739262910373,0.3608,98322.0,98319.0,0.003]
[1739262910575,0.2033872,98320.0,98319.0,0.003]
[1739262911676,0.2033872,98320.0,98314.0,0.00152555]
[1739262911677,0.002,98320.0,98314.0,0.00152555]
[1739262911978,0.2053872,98320.0,98319.0,0.003]
[1739262913382,0.2033872,98320.0,98319.0,0.003]
[1739262913880,0.28008139,98320.0,98319.0,0.003]
[1739262919086,0.2053872,98320.0,98319.0,0.003]
[1739262922994,0.002,98320.0,98319.0,0.003]
[1739262923181,0.06884,98320.0,98319.0,0.003]
[1739262923880,0.002,98320.0,98319.0,0.003]
[1739262924189,0.06888,98320.0,98319.0,0.003]
[1739262924385,0.002,98320.0,98319.0,0.003]
[1739262924589,0.06884,98320.0,98319.0,0.003]
[1739262926078,0.002,98320.0,98319.0,0.003]
[1739262927384,0.07671457,98320.0,98319.0,0.003]
[1739262931190,0.002,98320.0,98319.0,0.003]
[1739262932187,0.30325379,98337.0,98331.0,0.2033644]
[1739262932389,0.30325379,98337.0,98331.0,0.5641644]
[1739262933284,0.30325379,98337.0,98336.0,0.2033541]
[1739262934390,0.067,98341.0,98340.0,0.2033458]
[1739262934986,0.0834734,98350.0,98347.0,0.2033294]
[1739262935190,0.06696,98349.0,98347.0,0.2033294]
[1739262937492,0.06696,98349.0,98347.0,0.2043294]
[1739262937905,0.07470264,98348.0,98347.0,0.2043294]
[1739262938094,0.07470264,98348.0,98347.0,0.2053294]
[1739262938999,0.07570264,98348.0,98347.0,0.2053294]
[1739262940006,0.14250264,98348.0,98347.0,0.2053294]
[1739262941299,0.07570264,98348.0,98347.0,0.2053294]
[1739262941499,0.14250264,98348.0,98347.0,0.2053294]
[1739262944912,0.0678,98348.0,98347.0,0.2053294]
[1739262945209,0.0678,98348.0,98347.0,0.5661294]
[1739262946212,0.06776,98348.0,98347.0,0.5661294]
[1739262946414,0.001,98348.0,98347.0,0.5661294]
[1739262946608,0.06776,98348.0,98347.0,0.5661294]
[1739262947115,0.001,98348.0,98347.0,0.5661294]
[1739262947305,0.06776,98348.0,98347.0,0.5661294]
[1739262959521,0.14245514,98348.0,98347.0,0.5661294]
[1739262967728,0.06776,98348.0,98347.0,0.5661294]
[1739262971124,0.06776,98348.0,98347.0,0.2053294]
[1739262976239,0.001,98348.0,98347.0,0.2053294]
[1739262980841,0.00152531,98370.0,98361.0,0.2033026]
[1739262981144,0.06664,98366.0,98361.0,0.5641026]
[1739262981334,0.06664,98366.0,98365.0,0.2032943]
[1739262982444,0.01121834,98369.0,98362.0,0.0303]
[1739262982643,0.00152531,98370.0,98368.0,0.2032881]
[1739262982843,0.27438995,98371.0,98370.0,0.203284]
[1739262983243,0.28596698,98371.0,98370.0,0.203284]
[1739262984238,0.01157703,98371.0,98370.0,0.203284]
[1739262984439,0.33737772,98376.0,98375.0,0.2032736]
[1739262984639,0.40401772,98376.0,98375.0,0.2032736]
[1739262985552,0.30487772,98376.0,98375.0,0.2032736]
[1739262985741,0.37151772,98376.0,98375.0,0.2032736]
[1739262986247,0.37151772,98376.0,98375.0,0.2042736]
[1739262986557,0.37151772,98376.0,98375.0,0.2052736]
[1739262986746,0.38324191,98376.0,98375.0,0.2052736]
[1739262989450,0.38420191,98376.0,98375.0,0.2052736]
[1739262993648,0.38428191,98376.0,98375.0,0.2052736]
[1739263002255,0.45895817,98376.0,98375.0,0.2052736]
[1739263004262,0.45871817,98376.0,98375.0,0.2052736]
[1739263005360,0.38404191,98376.0,98375.0,0.2052736]
[1739263011469,0.45871805,98376.0,98375.0,0.2052736]
[1739263017682,0.15384033,98376.0,98375.0,0.2052736]
[1739263020980,0.07916419,98376.0,98375.0,0.2052736]
[1739263022670,0.07916419,98376.0,98375.0,0.002]
[1739263023870,0.07956419,98376.0,98375.0,0.002]
[1739263024074,0.06784,98376.0,98375.0,0.002]
[1739263027485,0.14252102,98376.0,98375.0,0.002]
[1739263029786,0.07468102,98376.0,98375.0,0.002]
[1739263030087,0.14228102,98376.0,98375.0,0.002]
[1739263030981,0.07468102,98376.0,98375.0,0.002]
[1739263036281,0.07468102,98376.0,98375.0,0.2052737]
[1739263037387,0.06744,98382.0,98381.0,0.2032613]
[1739263038689,0.06744,98382.0,98381.0,0.2042613]
[1739263039290,0.06744,98382.0,98381.0,0.2052613]
[1739263042600,0.24387945,98383.0,98382.0,0.2032593]
[1739263042899,0.31103945,98383.0,98382.0,0.2032593]
[1739263043891,0.31103945,98383.0,98382.0,0.2042593]
[1739263044893,0.31103945,98383.0,98382.0,0.2052593]
[1739263047305,0.24387945,98383.0,98382.0,0.2052593]
[1739263047505,0.31087945,98383.0,98382.0,0.2052593]
[1739263050709,0.07467043,98383.0,98382.0,0.2052593]
[1739263052399,0.01107569,98385.0,98382.0,0.002]
[1739263052709,0.0547493,98392.0,98391.0,0.2032407]
[1739263052907,0.01123403,98392.0,98388.0,0.2032458]
[1739263053105,0.06692,98399.0,98388.0,0.2032458]
[1739263054307,0.0316,98396.0,98388.0,0.2032458]
[1739263054498,0.0646,98396.0,98388.0,0.2032458]
[1739263055408,0.0746682,98392.0,98388.0,0.2032458]
[1739263055612,0.0746682,98392.0,98389.0,0.2032441]
[1739263056705,0.0746682,98392.0,98389.0,0.2182441]
[1739263056903,0.0746682,98392.0,98389.0,0.2212441]
[1739263058204,0.0746682,98391.0,98390.0,0.2032409]
[1739263059402,0.0746682,98391.0,98390.0,0.2052409]
[1739263061315,0.1417082,98391.0,98390.0,0.2052409]
[1739263061915,0.06704,98391.0,98390.0,0.2052409]
[1739263063310,0.0316,98396.0,98394.0,0.2032333]
[1739263063517,0.067,98395.0,98394.0,0.2032333]
[1739263064014,0.0109929,98397.0,98396.0,0.2032304]
[1739263064219,0.06696,98397.0,98396.0,0.2032304]
[1739263065917,0.06692,98397.0,98396.0,0.2182304]
[1739263066910,0.06692,98397.0,98396.0,0.2252304]
[1739263072413,0.06692,98397.0,98396.0,0.2052304]
[1739263073623,0.14158306,98397.0,98396.0,0.2052304]
[1739263074521,0.14162306,98397.0,98396.0,0.2052304]
[1739263078620,0.07466306,98397.0,98396.0,0.2052304]
[1739263078927,0.14150306,98397.0,98396.0,0.2052304]
[1739263081727,0.06684,98397.0,98396.0,0.2052304]
[1739263082125,0.06684,98397.0,98384.0,0.3608]
[1739263082126,0.2032331,98395.0,98384.0,0.3608]
[1739263082326,0.1094986,98394.0,98384.0,0.5640549]
[1739263082526,0.0547493,98394.0,98384.0,0.5640549]
[1739263083538,0.0547493,98394.0,98384.0,0.5650549]
[1739263083927,0.0547493,98394.0,98384.0,0.5660549]
[1739263084626,0.2589843,98394.0,98384.0,0.5660549]
[1739263085126,0.2032389,98392.0,98384.0,0.3628]
[1739263085321,0.0306,98391.0,98384.0,0.3628]
[1739263085834,0.0607,98391.0,98384.0,0.3628]
[1739263086825,0.0627,98391.0,98384.0,0.3628]
[1739263088427,0.2032455,98389.0,98384.0,0.3628]
[1739263088730,0.0308,98388.0,98384.0,0.3618]
[1739263088934,0.0308,98388.0,98384.0,0.3628]
[1739263089929,0.0318,98388.0,98384.0,0.3628]
[1739263090132,0.0318,98388.0,98385.0,0.2032513]
[1739263091431,0.04288557,98388.0,98385.0,0.2032513]
[1739263091636,0.04388557,98388.0,98385.0,0.2032513]
[1739263092038,0.04388557,98388.0,98385.0,0.2042513]
[1739263092236,0.04288557,98388.0,98385.0,0.2042513]
[1739263092435,0.04388557,98388.0,98385.0,0.2052513]
[1739263098643,0.04388557,98388.0,98385.0,0.002]
[1739263103844,0.01308557,98388.0,98385.0,0.002]
[1739263133085,0.01308557,98388.0,98385.0,0.2052526]
[1739263138675,0.01308557,98388.0,98385.0,0.002]
[1739263140378,0.07467333,98387.0,98385.0,0.002]
[1739263141577,0.07567333,98387.0,98385.0,0.002]
[1739263142776,0.07667333,98387.0,98385.0,0.002]
[1739263143581,0.07467333,98386.0,98385.0,0.002]
[1739263144787,0.07567333,98386.0,98385.0,0.002]
[1739263146079,0.07567333,98386.0,98385.0,0.001]
[1739263146286,0.07667333,98386.0,98385.0,0.002]
[1739263147290,0.002,98386.0,98385.0,0.002]
[1739263152387,0.07008,98386.0,98385.0,0.002]
[1739263153287,0.002,98386.0,98385.0,0.002]
[1739263153491,0.07004,98386.0,98385.0,0.002]
[1739263154183,0.14470977,98386.0,98385.0,0.002]
[1739263156196,0.14470977,98386.0,98385.0,0.3628]
[1739263156690,0.07004,98386.0,98385.0,0.3628]
[1739263158092,0.07004,98386.0,98385.0,0.002]
[1739263164294,0.14471051,98386.0,98385.0,0.002]
[1739263169593,0.07004,98386.0,98385.0,0.002]
[1739263173997,0.273291,98386.0,98385.0,0.002]
[1739263174204,0.313291,98386.0,98385.0,0.002]
[1739263174995,0.273291,98386.0,98385.0,0.002]
[1739263178598,0.273291,98386.0,98358.0,0.0637]
[1739263178599,0.2032829,98371.0,98358.0,0.0637]
[1739263178805,0.3608,98367.0,98358.0,0.0325]
[1739263178995,0.3608,98359.0,98357.0,0.00148]
[1739263179200,0.06748,98358.0,98353.0,0.2033192]
[1739263179796,0.07843252,98358.0,98353.0,0.2033192]
[1739263180398,0.07843252,98358.0,98346.0,0.03095248]
[1739263180605,0.2033192,98353.0,98346.0,0.00015248]
[1739263180799,0.0628,98352.0,98346.0,0.00015248]
[1739263182119,0.0628,98352.0,98346.0,0.18294387]
[1739263182308,0.3608,98350.0,98346.0,0.18294387]
[1739263183197,0.3608,98350.0,98346.0,0.38627607]
[1739263183999,0.3608,98350.0,98349.0,0.2033275]
[1739263184302,0.06744,98350.0,98349.0,0.2033275]
[1739263185307,0.06744,98350.0,98349.0,0.2073275]
[1739263185507,0.06844,98350.0,98349.0,0.2073275]
[1739263186604,0.06944,98350.0,98349.0,0.2073275]
[1739263186906,0.06944,98350.0,98349.0,0.2053275]
[1739263187101,0.0694,98350.0,98349.0,0.2053275]
[1739263189006,0.06936,98350.0,98349.0,0.2053275]
[1739263191413,0.002,98350.0,98349.0,0.2053275]
[1739263191611,0.06928,98350.0,98349.0,0.2053275]
[1739263198409,0.002,98350.0,98349.0,0.2053275]
[1739263198911,0.0692,98350.0,98349.0,0.2053275]
[1739263201223,0.0692,98350.0,98349.0,0.5661275]
[1739263213022,0.0692,98350.0,98349.0,0.002]
[1739263215914,0.14390242,98350.0,98349.0,0.002]
[1739263221818,0.0692,98350.0,98349.0,0.002]
[1739263222822,0.0692,98350.0,98349.0,0.2053275]
[1739263225028,0.002,98350.0,98349.0,0.2053275]
[1739263225233,0.06932,98350.0,98349.0,0.2053275]
[1739263231118,0.14401903,98350.0,98349.0,0.2053275]
[1739263234141,0.07669903,98350.0,98349.0,0.2053275]
[1739263234335,0.14445903,98350.0,98349.0,0.2053275]
[1739263234630,0.25461586,98358.0,98349.0,0.3628]
[1739263234826,0.25461586,98358.0,98357.0,0.564111]
[1739263235024,0.32233586,98358.0,98357.0,0.564111]
[1739263235635,0.69055468,98358.0,98357.0,0.564111]
[1739263235829,0.69255468,98358.0,98357.0,0.564111]
[1739263236230,0.69055468,98358.0,98357.0,0.564111]
[1739263236430,0.69255468,98358.0,98357.0,0.564111]
[1739263237025,0.59892452,98358.0,98357.0,0.564111]
[1739263237233,0.08067252,98358.0,98357.0,0.564111]
[1739263237437,0.08267252,98358.0,98357.0,0.564111]
[1739263238233,0.07172,98358.0,98357.0,0.564111]
[1739263239028,0.004,98358.0,98357.0,0.564111]
[1739263252944,0.004,98358.0,98357.0,0.203311]
[1739263253146,0.004,98358.0,98357.0,0.924911]
[1739263254543,0.004,98358.0,98357.0,0.203311]
[1739263254748,0.004,98358.0,98357.0,0.924911]
[1739263254945,0.004,98358.0,98357.0,0.203311]
[1739263255142,0.004,98358.0,98357.0,0.924911]
[1739263260447,0.06872,98370.0,98364.0,0.2032965]
[1739263260948,0.0547493,98380.0,98364.0,0.2032965]
[1739263261254,0.06872,98375.0,98364.0,0.2032965]
[1739263263243,0.01065333,98367.0,98364.0,0.2032965]
[1739263267057,0.0547493,98380.0,98378.0,0.2032675]
[1739263267265,0.04320457,98379.0,98378.0,0.5640675]
[1739263268652,0.04320457,98379.0,98378.0,0.5650675]
[1739263268852,0.04320457,98379.0,98378.0,0.5660675]
[1739263275163,0.0547493,98388.0,98387.0,0.203249]
[1739263275364,0.06828,98388.0,98387.0,0.203249]
[1739263275964,0.07861653,98388.0,98387.0,0.203249]
[1739263276355,0.07861653,98388.0,98387.0,0.205249]
[1739263283070,0.01033653,98388.0,98387.0,0.205249]
[1739263283367,0.068,98388.0,98387.0,0.205249]
[1739263285266,0.068,98388.0,98387.0,0.204249]
[1739263285658,0.068,98388.0,98387.0,0.205249]
[1739263285866,0.068,98388.0,98387.0,0.204249]
[1739263286167,0.068,98388.0,98387.0,0.205249]
[1739263287369,0.068,98388.0,98387.0,0.204249]
[1739263287565,0.068,98388.0,98387.0,0.205249]
[1739263307691,0.14266976,98388.0,98387.0,0.205249]
[1739263311385,0.068,98388.0,98387.0,0.205249]
[1739263317289,0.068,98388.0,98387.0,0.205249]
[1739263317588,0.06744,98388.0,98387.0,0.205249]
[1739263324689,0.01073163,98389.0,98387.0,0.205249]
[1739263324994,0.19,98400.0,98388.0,0.3608]
[1739263325194,0.0841409,98400.0,98399.0,0.5640242]
[1739263328390,0.0841409,98400.0,98399.0,0.2032242]
[1739263328594,0.0841409,98400.0,98399.0,0.9248242]
[1739263336106,0.0841409,98400.0,98399.0,0.5640242]
[1739263337003,0.1587967,98400.0,98399.0,0.5640242]
[1739263340296,0.1587967,98400.0,98399.0,0.3608]
[1739263340496,0.1587967,98400.0,98394.0,0.5640337]
[1739263340711,0.1587967,98400.0,98394.0,0.2032337]
[1739263342098,0.1587967,98400.0,98390.0,0.00015248]
[1739263342298,0.1587967,98400.0,98395.0,0.2032318]
[1739263342498,0.0841409,98400.0,98395.0,0.2032318]
[1739263343503,0.0841409,98400.0,98390.0,0.00015248]
[1739263343810,0.1936395,98400.0,98396.0,0.20323]
[1739263344107,0.0841409,98400.0,98396.0,0.20323]
[1739263349004,0.0841409,98400.0,98399.0,0.203224]
[1739263349606,0.1520209,98400.0,98399.0,0.203224]
[1739263352706,0.1520209,98400.0,98399.0,0.564024]
[1739263353013,0.1520209,98400.0,98399.0,0.203224]
[1739263355611,0.1520209,98400.0,98391.0,0.0331]
[1739263356310,0.1520209,98400.0,98391.0,0.2363387]
[1739263356511,0.0841409,98400.0,98391.0,0.2032387]
[1739263356715,0.06816,98399.0,98396.0,0.3608]
[1739263361612,0.07466088,98398.0,98396.0,0.3608]
[1739263363318,0.07466088,98398.0,98396.0,0.5640284]
[1739263364519,0.08139559,98399.0,98396.0,0.5640284]
[1739263364915,0.08139559,98399.0,98396.0,0.2032284]
[1739263368126,0.08139559,98399.0,98397.0,0.2032263]
[1739263370819,0.08139559,98399.0,98397.0,0.2042263]
[1739263371529,0.08139559,98399.0,98397.0,0.2032263]
[1739263374234,0.08139559,98399.0,98397.0,0.2042263]
[1739263374825,0.08139559,98399.0,98397.0,0.2032263]
[1739263380133,0.08139559,98399.0,98396.0,0.3608]
[1739263380431,0.08139559,98399.0,98390.0,0.00015248]
[1739263380624,0.0625,98398.0,98390.0,0.00015248]
[1739263381230,0.3608,98392.0,98376.0,0.00296439]
[1739263381436,0.1094986,98386.0,98377.0,0.203269]
[1739263381637,0.06916,98385.0,98377.0,0.203269]
[1739263382428,0.06916,98385.0,98374.0,0.3608]
[1739263382631,0.06916,98385.0,98378.0,0.2032669]
[1739263383236,0.06916,98385.0,98374.0,0.3608]
[1739263383436,0.06916,98385.0,98380.0,0.2032617]
[1739263383935,0.08204301,98385.0,98380.0,0.2032617]
[1739263384835,0.08204301,98385.0,98380.0,0.2132617]
[1739263386542,0.08204301,98385.0,98381.0,0.2032608]
[1739263387243,0.08204301,98385.0,98382.0,0.2032581]
[1739263388332,0.08204301,98385.0,98383.0,0.2032567]
[1739263390940,0.08204301,98385.0,98383.0,0.2102567]
[1739263392942,0.01288301,98385.0,98383.0,0.2102567]
[1739263393141,0.06876,98384.0,98383.0,0.2102567]
[1739263394145,0.06876,98384.0,98383.0,0.2032567]
[1739263394444,0.06876,98384.0,98383.0,0.2102567]
[1739263397648,0.06876,98384.0,98383.0,0.5710567]
[1739263404344,0.01287145,98391.0,98385.0,0.2032524]
[1739263404544,0.06836,98390.0,98385.0,0.2032524]
[1739263405745,0.06836,98390.0,98385.0,0.2082524]
[1739263406344,0.06836,98390.0,98388.0,0.2032454]
[1739263406539,0.06828,98389.0,98385.0,0.005]
[1739263406759,0.06828,98389.0,98386.0,0.2032509]
[1739263407051,0.06828,98389.0,98388.0,0.2032468]
[1739263408656,0.06828,98389.0,98388.0,0.2062468]
[1739263410360,0.06828,98389.0,98388.0,0.003]
[1739263411250,0.06812,98389.0,98388.0,0.003]
[1739263412055,0.14278897,98389.0,98388.0,0.003]
[1739263424660,0.06812,98389.0,98388.0,0.003]
[1739263426162,0.10812,98389.0,98388.0,0.003]
[1739263427862,0.46892,98389.0,98388.0,0.003]
[1739263428573,0.56251923,98389.0,98388.0,0.003]
[1739263429573,0.20171923,98389.0,98388.0,0.003]
[1739263432479,0.27639531,98389.0,98388.0,0.003]
[1739263435367,0.10812,98389.0,98388.0,0.003]
[1739263438380,0.46892,98389.0,98388.0,0.003]
[1739263438681,0.42892,98389.0,98388.0,0.003]
[1739263448086,0.59719693,98389.0,98388.0,0.003]
[1739263450890,0.59719693,98389.0,98388.0,0.003]
[1739263451681,0.52907693,98389.0,98388.0,0.003]
[1739263451878,0.50255584,98389.0,98388.0,0.003]
[1739263452792,0.14175584,98389.0,98388.0,0.003]
[1739263454688,0.18175584,98389.0,98388.0,0.003]
[1739263456880,0.10708,98389.0,98388.0,0.003]
[1739263462998,0.18175608,98389.0,98388.0,0.003]
[1739263464786,0.2032495,98387.0,98372.0,0.2670791]
[1739263464991,0.3608,98380.0,98373.0,0.2032776]
[1739263465596,0.3608,98380.0,98374.0,0.2032754]
[1739263466812,0.3608,98380.0,98352.0,0.0508301]
[1739263467101,0.3608,98369.0,98363.0,0.2032966]
[1739263467304,0.42772,98369.0,98363.0,0.2032966]
[1739263468301,0.42772,98369.0,98368.0,0.00552481]
[1739263468501,0.42772,98369.0,98368.0,0.02052481]
[1739263472607,0.44008674,98369.0,98368.0,0.02052481]
[1739263473399,0.37316674,98369.0,98368.0,0.02052481]
[1739263473601,0.44000674,98369.0,98368.0,0.02052481]
[1739263474611,0.44000674,98369.0,98368.0,0.01917234]
[1739263476211,0.48000674,98369.0,98368.0,0.01917234]
[1739263479405,0.44000674,98369.0,98368.0,0.01917234]
[1739263480007,0.68329274,98369.0,98368.0,0.01917234]
[1739263480606,0.68333274,98369.0,98368.0,0.01917234]
[1739263486411,0.75802481,98369.0,98368.0,0.01917234]
[1739263490520,0.85164625,98369.0,98368.0,0.01917234]
[1739263491919,0.64836025,98369.0,98359.0,0.00015248]
[1739263492223,0.5641046,98360.0,98359.0,0.00015248]
[1739263492626,0.6041046,98360.0,98359.0,0.00015248]
[1739263493123,0.4008,98360.0,98359.0,0.00015248]
[1739263493324,0.3608,98360.0,98359.0,0.00015248]
[1739263493919,0.3608,98360.0,98359.0,0.00715248]
[1739263494118,0.3608,98360.0,98359.0,0.01315248]
[1739263494716,0.5641046,98360.0,98359.0,0.00715248]
[1739263495018,0.5651046,98360.0,98359.0,0.01315248]
[1739263495626,0.5651046,98360.0,98359.0,0.00115248]
[1739263497017,0.5651046,98360.0,98359.0,0.00015248]
[1739263497818,0.5641046,98360.0,98359.0,0.00015248]
[1739263498127,0.5641046,98360.0,98359.0,0.00315248]
[1739263499817,0.73242829,98360.0,98359.0,0.00315248]
[1739263502117,0.2033193,98353.0,98344.0,0.0316]
[1739263502314,0.3608,98345.0,98344.0,0.0316]
[1739263503528,0.3608,98345.0,98344.0,0.0336]
[1739263503826,0.5641356,98345.0,98344.0,0.0336]
[1739263504023,0.5641356,98345.0,98344.0,0.0386]
[1739263504224,0.5651356,98345.0,98344.0,0.0386]
[1739263504426,0.5651356,98345.0,98344.0,0.0336]
[1739263504619,0.5651356,98345.0,98344.0,0.0386]
[1739263505629,0.3618,98345.0,98344.0,0.0386]
[1739263506022,0.3738037,98345.0,98344.0,0.0386]
[1739263506930,0.44850029,98345.0,98344.0,0.0386]
[1739263509122,0.3738037,98345.0,98344.0,0.0386]
[1739263528853,0.3738037,98345.0,98344.0,0.007]
[1739263532259,0.5771395,98345.0,98344.0,0.007]
[1739263532650,0.6171395,98345.0,98344.0,0.007]
[1739263534056,0.6171395,98345.0,98344.0,0.006]
[1739263534444,0.6171395,98345.0,98344.0,0.004]
[1739263534641,0.2033472,98340.0,98338.0,0.00152527]
[1739263534854,0.2701883,98339.0,98338.0,0.00152527]
[1739263535846,0.2701883,98339.0,98338.0,0.00352527]
[1739263536653,0.3315883,98339.0,98338.0,0.00352527]
[1739263537058,0.3725883,98339.0,98338.0,0.00952527]
[1739263537551,0.3715883,98339.0,98338.0,0.00352527]
[1739263537742,0.3715883,98339.0,98338.0,0.00252527]
[1739263537946,0.3735883,98339.0,98338.0,0.00252527]
[1739263538552,0.3725883,98339.0,98338.0,0.00252527]
[1739263538755,0.3725883,98339.0,98335.0,0.00015248]
[1739263538962,0.2033648,98331.0,98325.0,0.0312]
[1739263539259,0.5641648,98331.0,98317.0,0.0317]
[1739263539466,0.3608,98322.0,98317.0,0.0317]
[1739263539759,0.06684,98321.0,98317.0,0.0317]
[1739263541952,0.06984,98321.0,98317.0,0.0387]
[1739263542152,0.06984,98321.0,98317.0,0.2420937]
[1739263544860,0.08144669,98321.0,98317.0,0.2420937]
[1739263546856,0.08144669,98321.0,98318.0,0.2033915]
[1739263548161,0.08144669,98321.0,98318.0,0.2103915]
[1739263549265,0.2033896,98319.0,98318.0,0.007]
[1739263549755,0.2033896,98319.0,98314.0,0.0327]
[1739263549951,0.2033896,98319.0,98318.0,0.004]
[1739263550462,0.2033896,98319.0,98314.0,0.0327]
[1739263550768,0.2033896,98319.0,98318.0,0.004]
[1739263551758,0.2053896,98319.0,98318.0,0.004]
[1739263553579,0.2043896,98319.0,98318.0,0.004]
[1739263555564,0.001,98319.0,98318.0,0.004]
[1739263556970,0.07844669,98321.0,98318.0,0.004]
[1739263557268,0.001,98319.0,98314.0,0.0327]
[1739263557968,0.07844669,98321.0,98314.0,0.0327]
[1739263558164,0.3608,98315.0,98314.0,0.0327]
[1739263558467,0.3608,98315.0,98314.0,0.0337]
[1739263560169,0.3618,98315.0,98314.0,0.0337]
[1739263565169,0.42864,98315.0,98314.0,0.2370999]
[1739263566870,0.42864,98315.0,98314.0,0.0337]
[1739263567267,0.42864,98315.0,98314.0,0.001]
[1739263568177,0.46864,98315.0,98314.0,0.001]
[1739263569069,0.42864,98315.0,98314.0,0.001]
[1739263569781,0.46864,98315.0,98314.0,0.001]
[1739263572773,0.42864,98315.0,98314.0,0.001]
[1739263575686,0.42764,98315.0,98314.0,0.001]
[1739263576680,0.42864,98315.0,98310.0,0.00015256]
[1739263577379,0.50336807,98315.0,98310.0,0.00015256]
[1739263578084,0.50236807,98315.0,98310.0,0.00015256]
[1739263578276,0.43552807,98315.0,98310.0,0.00115256]
[1739263578475,0.06684,98314.0,98313.0,0.2034011]
[1739263579797,0.06684,98314.0,98310.0,0.00115256]
[1739263580083,0.23523024,98314.0,98310.0,0.00015256]
[1739263580985,0.23523024,98314.0,98310.0,0.00115256]
[1739263581187,0.23523024,98314.0,98310.0,0.20456026]
[1739263581976,0.23623024,98314.0,98310.0,0.20456026]
[1739263582686,0.07472807,98313.0,98310.0,0.20456026]
[1739263583281,0.07472807,98313.0,98310.0,0.00115256]
[1739263583483,0.2034061,98311.0,98303.0,0.0628]
[1739263583692,0.3608,98304.0,98303.0,0.0628]
[1739263583985,0.3608,98304.0,98303.0,0.031]
[1739263584583,0.3608,98304.0,98300.0,0.1]
[1739263584781,0.3608,98304.0,98303.0,0.003]
[1739263585688,0.37296886,98304.0,98303.0,0.003]
[1739263586285,0.37296886,98304.0,98300.0,0.1]
[1739263586485,0.60032306,98304.0,98303.0,0.003]
[1739263589685,0.60032306,98304.0,98300.0,0.104]
[1739263590086,0.64980428,98304.0,98300.0,0.104]
[1739263590793,0.64980428,98304.0,98303.0,0.003]
[1739263591395,0.64980428,98304.0,98300.0,0.1]
[1739263591689,0.64880428,98304.0,98300.0,0.1]
[1739263591894,0.64980428,98304.0,98300.0,0.1]
[1739263592496,0.64880428,98304.0,98300.0,0.1]
[1739263592697,0.64980428,98304.0,98300.0,0.1]
[1739263592995,0.64980428,98304.0,98276.0,0.0508692]
[1739263592996,0.3608,98301.0,98278.0,0.2034722]
[1739263593290,0.3608,98285.0,98279.0,0.0316]
[1739263593500,0.06684,98284.0,98280.0,0.2034693]
[1739263593882,0.06684,98284.0,98279.0,0.0316]
[1739263594095,0.06684,98284.0,98282.0,0.2034645]
[1739263594896,0.06784,98284.0,98280.0,0.006]
[1739263595094,0.08122767,98284.0,98280.0,0.006]
[1739263596601,0.08022767,98284.0,98282.0,0.005]
[1739263597104,0.08122767,98284.0,98280.0,0.006]
[1739263598101,0.08022767,98284.0,98282.0,0.005]
[1739263598300,0.10843246,98283.0,98282.0,0.005]
[1739263599592,0.10843246,98283.0,98281.0,0.2034674]
[1739263601306,0.11043246,98283.0,98282.0,0.005]
[1739263602402,0.17743246,98283.0,98282.0,0.005]
[1739263603094,0.17843246,98283.0,98281.0,0.2094674]
[1739263604194,0.17743246,98283.0,98281.0,0.2034674]
[1739263604397,0.17743246,98283.0,98282.0,0.005]
[1739263604896,0.17743246,98283.0,98281.0,0.2034674]
[1739263604897,0.17843246,98283.0,98281.0,0.2094674]
[1739263605609,0.23264404,98282.0,98281.0,0.006]
[1739263606297,0.23264404,98282.0,98281.0,0.2034674]
[1739263608401,0.23364404,98282.0,98281.0,0.2034674]
[1739263612095,0.2034786,98276.0,98272.0,0.00010174]
[1739263612403,0.2034786,98276.0,98273.0,0.2034838]
[1739263613106,0.3608,98278.0,98273.0,0.2034838]
[1739263613699,0.001,98276.0,98273.0,0.2064838]
[1739263614299,0.3608,98278.0,98273.0,0.2064838]
[1739263614495,0.04948122,98275.0,98273.0,0.2064838]
[1739263616804,0.05048122,98275.0,98273.0,0.2064838]
[1739263623004,0.14797568,98274.0,98273.0,0.2064838]
[1739263623203,0.14797568,98274.0,98273.0,0.2034838]
[1739263625009,0.15908047,98274.0,98273.0,0.2034838]
[1739263626315,0.16008047,98274.0,98273.0,0.2034838]
[1739263630721,0.27179799,98274.0,98273.0,0.2034838]
[1739263632215,0.33887799,98274.0,98273.0,0.2034838]
[1739263633217,0.33895799,98274.0,98273.0,0.2034838]
[1739263633812,0.2606932,98274.0,98273.0,0.2034838]
[1739263634016,0.2606932,98274.0,98273.0,0.5642838]
[1739263634519,0.1608932,98274.0,98273.0,0.5642838]
[1739263635639,0.1608932,98274.0,98273.0,0.7863838]
[1739263635837,0.1608932,98274.0,98273.0,0.5829]
[1739263636037,0.1608932,98274.0,98273.0,0.7863838]
[1739263637237,0.68428,98289.0,98288.0,0.2034536]
[1739263638429,0.69228,98289.0,98288.0,0.2034536]
[1739263638631,0.69628,98289.0,98288.0,0.2034536]
[1739263639443,0.69028,98289.0,98288.0,0.2034536]
[1739263639744,0.68828,98289.0,98288.0,0.2034536]
[1739263642237,0.68628,98289.0,98288.0,0.2034536]
[1739263642442,0.68828,98289.0,98288.0,0.2034536]
[1739263642838,0.68628,98289.0,98288.0,0.2034536]
[1739263643040,0.68828,98289.0,98288.0,0.2034536]
[1739263648538,0.77519322,98289.0,98288.0,0.2034536]
[1739263651955,0.09091322,98289.0,98288.0,0.2034536]
[1739263652654,0.004,98289.0,98288.0,0.2034536]
[1739263657550,0.004,98289.0,98269.0,0.2221]
[1739263657551,0.004,98289.0,98280.0,0.2034695]
[1739263657858,0.004,98289.0,98269.0,0.2221]
[1739263658057,0.004,98289.0,98283.0,0.2034634]
[1739263658653,0.003,98289.0,98280.0,0.001]
[1739263658859,0.001,98289.0,98280.0,0.001]
[1739263659361,0.2034562,98287.0,98280.0,0.001]
[1739263659561,0.0302,98286.0,98280.0,0.001]
[1739263659752,0.06724,98285.0,98280.0,0.001]
[1739263659948,0.09864,98285.0,98280.0,0.001]